fUST/lending_fUST_20250529
["ID","MTS","AMOUNT","RATE_DAILY","PERIOD"]
[362947959,1748531357139,-430.0,0.00019178,2]
[362947960,1748531357160,-430.0,0.00019178,2]
[362947961,1748531357181,-430.0,0.00019178,2]
[362947962,1748531357201,-420.0,0.00019178,2]
[362947963,1748531357224,-430.0,0.00019178,2]
[362947964,1748531357245,-450.0,0.00019178,2]
[362947965,1748531357266,-225.97803494,0.00019178,2]
[362947966,1748531357288,-430.0,0.00019178,2]
[362947967,1748531357311,-430.0,0.00019178,2]
[362947968,1748531357334,-430.0,0.00019178,2]
[362947969,1748531357354,-430.0,0.00019178,2]
[362947970,1748531357374,-402.90912656,0.00019178,2]
[362947971,1748531357395,-151.0,0.00019178,2]
[362947972,1748531357415,-180.008163,0.00019178,2]
[362947973,1748531357435,-156.587,0.00019233,2]
[362947974,1748531357455,-162.380719,0.00019288,2]
[362947975,1748531357479,-430.0,0.00019452,2]
[362947976,1748531357499,-430.0,0.00019452,2]
[362947977,1748531357522,-430.0,0.00019452,2]
[362947978,1748531357545,-430.0,0.00019452,2]
[362947979,1748531357569,-430.0,0.00019452,2]
[362947980,1748531357591,-430.0,0.00019452,2]
[362947981,1748531357612,-430.0,0.00019452,2]
[362947982,1748531357636,-430.0,0.00019452,2]
[362947983,1748531357658,-430.0,0.00019452,2]
[362947984,1748531357681,-430.0,0.00019452,2]
[362947985,1748531357703,-430.0,0.00019452,2]
[362947986,1748531357724,-430.0,0.00019452,2]
[362947987,1748531357745,-430.0,0.00019452,2]
[362947988,1748531357766,-400.0,0.00019452,2]
[362947989,1748531357790,-430.0,0.00019452,2]
[362947990,1748531357811,-430.0,0.00019452,2]
[362947991,1748531357832,-430.0,0.00019452,2]
[362947992,1748531357855,-430.0,0.00019452,2]
[362947993,1748531357876,-430.0,0.00019452,2]
[362947994,1748531357897,-430.0,0.00019452,2]
[362947995,1748531357918,-430.0,0.00019452,2]
[362947996,1748531357941,-430.0,0.00019452,2]
[362947997,1748531357963,-430.0,0.00019452,2]
[362947998,1748531357983,-405.49512213,0.00019452,2]
[362947999,1748531358003,-430.0,0.00019452,2]
[362948000,1748531358026,-430.0,0.00019452,2]
[362948001,1748531358048,-430.0,0.00019452,2]
[362948002,1748531358071,-430.0,0.00019452,2]
[362948003,1748531358093,-430.0,0.00019452,2]
[362948004,1748531358116,-430.0,0.00019452,2]
[362948005,1748531358139,-430.0,0.00019452,2]
[362948006,1748531358161,-1035.51914811,0.00019626,2]
[362948007,1748531358189,-219.44353917,0.00019678,2]
[362948008,1748531358211,-430.0,0.00019726,2]
[362948009,1748531358232,-430.0,0.00019726,2]
[362948010,1748531358255,-430.0,0.00019726,2]
[362948011,1748531358279,-430.0,0.00019726,2]
[362948012,1748531358302,-430.0,0.00019726,2]
[362948013,1748531358323,-308.82772109,0.00019726,2]
[362948014,1748531358438,-121.17227891,0.00019726,2]
[362948015,1748531358462,-430.0,0.00019726,2]
[362948016,1748531358487,-430.0,0.00019726,2]
[362948017,1748531358511,-430.0,0.00019726,2]
[362948018,1748531358533,-430.0,0.00019726,2]
[362948019,1748531358558,-430.0,0.00019726,2]
[362948020,1748531358579,-430.0,0.00019726,2]
[362948021,1748531358602,-430.0,0.00019726,2]
[362948022,1748531358625,-430.0,0.00019726,2]
[362948023,1748531358648,-430.0,0.00019726,2]
[362948024,1748531358670,-305.82518055,0.00019726,2]
[362948025,1748531358692,-430.0,0.00019726,2]
[362948026,1748531358714,-430.0,0.00019726,2]
[362948027,1748531358736,-358.78,0.00019726,2]
[362948028,1748531358760,-430.0,0.00019726,2]
[362948029,1748531358783,-430.0,0.00019726,2]
[362948030,1748531358806,-203.70260561,0.00019726,2]
[362948031,1748531362136,-226.29739439,0.00019726,2]
[362948032,1748531362158,-1068.42624269,0.00019817,2]
[362948033,1748531362178,-430.0,0.0002,2]
[362948034,1748531362201,-430.0,0.0002,2]
[362948035,1748531362224,-430.0,0.0002,2]
[362948036,1748531362246,-430.0,0.0002,2]
[362948037,1748531362270,-430.0,0.0002,2]
[362948038,1748531362293,-430.0,0.0002,2]
[362948039,1748531362316,-430.0,0.0002,2]
[362948040,1748531362339,-430.0,0.0002,2]
[362948041,1748531362360,-478.39560952,0.0002,2]
[362948042,1748531362383,-430.0,0.0002,2]
[362948043,1748531362404,-430.0,0.0002,2]
[362948044,1748531362429,-430.0,0.0002,2]
[362948045,1748531362453,-374.31,0.0002,2]
[362948046,1748531362480,-430.0,0.0002,2]
[362948047,1748531362504,-430.0,0.0002,2]
[362948048,1748531362528,-430.0,0.0002,2]
[362948049,1748531362669,-375.58,0.0002,2]
[362948050,1748531362692,-261.62,0.0002,2]
[362948051,1748531362716,-430.0,0.0002,2]
[362948052,1748531362736,-160.0,0.00020146,2]
[362948053,1748531362756,-160.0,0.00020146,2]
[362948054,1748531362778,-160.0,0.00020146,2]
[362948055,1748531362798,-842.5625,0.00020146,2]
[362948056,1748531362819,-212.70147903,0.00020146,2]
[362948057,1748531362840,-423.31762986,0.00020146,2]
[362948058,1748531362861,-160.0,0.00020146,2]
[362948059,1748531362882,-160.0,0.00020146,2]
[362948060,1748531362902,-160.0,0.00020146,2]
[362948061,1748531362924,-229.26895353,0.00020146,2]
[362948062,1748531362946,-541.63,0.00020272,2]
[362948063,1748531362967,-380.0,0.00020273,2]
[362948064,1748531362990,-193.0565606,0.00020273,2]
[362948065,1748531363020,-430.0,0.00020273,2]
[362948066,1748531363049,-308.85461555,0.00020273,2]
[362948067,1748531363073,-430.0,0.00020273,2]
[362948068,1748531363098,-430.0,0.00020273,2]
[362948069,1748531363122,-430.0,0.00020273,2]
[362948070,1748531363146,-430.0,0.00020273,2]
[362948071,1748531363170,-430.0,0.00020273,2]
[362948072,1748531363192,-430.0,0.00020273,2]
[362948073,1748531363215,-430.0,0.00020273,2]
[362948074,1748531363239,-430.0,0.00020273,2]
[362948075,1748531363263,-437.62,0.00020273,2]
[362948076,1748531363285,-430.0,0.00020273,2]
[362948077,1748531363309,-430.0,0.00020273,2]
[362948078,1748531363337,-219.44353917,0.00020456,3]
[362948079,1748531363359,-849.36,0.00020538,3]
[362948080,1748531363380,-424.68,0.00020538,3]
[362948081,1748531363404,-430.0,0.00020547,2]
[362948082,1748531363425,-430.0,0.00020547,2]
[362948083,1748531363448,-430.0,0.00020547,2]
[362948084,1748531363473,-292.66590207,0.00020547,2]
[362948085,1748531363497,-430.0,0.00020547,2]
[362948086,1748531363524,-430.0,0.00020547,2]
[362948087,1748531363548,-254.48,0.00020547,2]
[362948088,1748531363572,-430.0,0.00020547,2]
[362948089,1748531363594,-430.0,0.00020547,2]
[362948090,1748531363617,-430.0,0.00020547,2]
[362948091,1748531363642,-153.92,0.00020547,2]
[362948092,1748531363663,-237.999,0.0002056,2]
[362948093,1748531363686,-430.0,0.00020821,2]
[362948094,1748531363708,-430.0,0.00020821,2]
[362948095,1748531363732,-430.0,0.00020821,2]
[362948096,1748531363755,-430.0,0.00020821,2]
[362948097,1748531363780,-430.0,0.00020821,2]
[362948098,1748531363802,-430.0,0.00020821,2]
[362948099,1748531363826,-512.22977422,0.00020821,2]
[362948100,1748531363849,-459.7,0.00020821,2]
[362948101,1748531363869,-1035.51914807,0.0002092,2]
[362948102,1748531363892,-211.01,0.00021095,2]
[362948103,1748531363913,-430.0,0.00021095,2]
[362948104,1748531363936,-220.84198271,0.00021095,2]
[362948105,1748531363960,-430.0,0.00021095,2]
[362948106,1748531363983,-430.0,0.00021095,2]
[362948107,1748531364007,-430.0,0.00021095,2]
[362948108,1748531364037,-219.44353917,0.00021233,4]
[362948109,1748531364059,-365.38236882,0.00021369,2]
[362948110,1748531364082,-430.0,0.00021369,2]
[362948111,1748531364104,-430.0,0.00021369,2]
[362948112,1748531364127,-430.0,0.00021369,2]
[362948113,1748531364150,-430.0,0.00021643,2]
[362948114,1748531364175,-296.74,0.00021643,2]
[362948115,1748531364199,-430.0,0.00021643,2]
[362948116,1748531364222,-430.0,0.00021917,2]
[362948117,1748531364245,-152.96,0.00021917,2]
[362948118,1748531364266,-243.776,0.00021918,2]
[362948119,1748531364287,-5000.0,0.00022,2]
[362948120,1748531364307,-2757.0,0.00022,2]
[362948121,1748531364328,-5000.0,0.00022,2]
[362948122,1748531364349,-150.0,0.00022,2]
[362948123,1748531364370,-469.58,0.00022,7]
[362948124,1748531364392,-40691.6523862,0.00022,7]
[362948125,1748531364436,-582.67,0.0002199,10]
[362948126,1748531364457,-15731.9676138,0.00022,7]
[362948127,1748531364481,-8694.405508,0.00022,30]
[362948128,1748531364502,-8585.9,0.00022,2]
[362948129,1748531364525,-1617.79,0.00022,7]
[362948130,1748531364554,-219.44353917,0.00022011,6]
[362948131,1748531364577,-430.0,0.00022191,2]
[362948132,1748531364599,-1035.51914807,0.00022213,2]
[362948133,1748531364624,-430.0,0.00022465,2]
[362948134,1748531366181,430.0,0.00019178,2]
[362948135,1748531366440,430.0,0.00019452,2]
[362948136,1748531366788,430.0,0.00019726,2]
[362948137,1748531367038,430.0,0.0002,2]
[362948138,1748531367273,430.0,0.00020273,2]
[362948139,1748531367533,430.0,0.00020547,2]
[362948140,1748531367821,430.0,0.00020821,2]
[362948141,1748531368604,430.0,0.00021095,2]
[362948142,1748531368778,430.0,0.00021369,2]
[362948143,1748531369019,430.0,0.00021643,2]
[362948144,1748531369313,441.98,0.00021917,2]
[362948145,1748531371181,430.0,0.00019178,2]
[362948146,1748531372947,168.29192913,0.00019178,2]
[362948147,1748531373094,886.47844432,0.00019177,2]
[362948148,1748531373208,886.47844432,0.00019177,2]
[362948149,1748531373752,886.47844432,0.00019177,2]
[362948150,1748531373857,886.47844432,0.00019177,2]
[362948151,1748531391639,206.84497033,0.00019177,2]
[362948152,1748531394358,331.62190277,0.00019178,2]
[362948153,1748531400377,430.0,0.00019178,2]
[362948154,1748531400645,430.0,0.00019452,2]
[362948155,1748531400951,390.63,0.00019726,2]
[362948158,1748531410442,500.0,0.00019178,2]
[362948159,1748531410703,500.0,0.00019178,2]
[362948160,1748531410947,500.0,0.00019178,2]
[362948161,1748531411193,500.0,0.00019178,2]
[362948162,1748531411434,500.0,0.00019178,2]
[362948163,1748531411699,500.0,0.00019178,2]
[362948164,1748531411990,500.0,0.00019178,2]
[362948165,1748531412278,500.0,0.00019178,2]
[362948166,1748531412558,500.0,0.00019178,2]
[362948167,1748531412806,500.0,0.00019451,2]
[362948168,1748531413102,500.0,0.00021094,2]
[362948169,1748531413366,500.0,0.00021999,2]
[362948170,1748531413620,500.0,0.00021999,2]
[362948171,1748531413881,164.73649913,0.00019178,2]
[362948172,1748531413939,500.0,0.00021999,2]
[362948173,1748531414126,500.0,0.00021999,2]
[362948174,1748531428249,430.0,0.00019178,2]
[362948175,1748531428523,430.0,0.00019452,2]
[362948189,1748531432203,-5000.0,0.00022512,2]
[362948190,1748531432212,-430.0,0.00022739,2]
[362948192,1748531432222,-219.44353917,0.00022789,7]
[362948194,1748531432232,-430.0,0.00023013,2]
[362948196,1748531432242,-500.0,0.00023135,2]
[362948198,1748531432252,-430.0,0.00023287,2]
[362948200,1748531432263,-1200.0,0.00023299,2]
[362948202,1748531432273,-2500.0,0.000233,2]
[362948204,1748531432283,-300.0,0.00023506,2]
[362948206,1748531432292,-300.0,0.00023506,2]
[362948208,1748531432302,-300.0,0.00023506,2]
[362948210,1748531432315,-1035.51914807,0.00023507,2]
[362948212,1748531432325,-430.0,0.00023561,2]
[362948214,1748531432335,-219.44353917,0.00023567,9]
[362948216,1748531432345,-207.4,0.00023702,2]
[362948218,1748531432354,-430.0,0.00023835,2]
[362948220,1748531432364,-571.30801433,0.00023875,2]
[362948222,1748531432373,-500.0,0.00023989,2]
[362948224,1748531432382,-500.0,0.00023989,2]
[362948225,1748531432391,-8188.667219,0.0002399,2]
[362948228,1748531432404,-19714.37041374,0.0002399,2]
[362948231,1748531432414,-229.26895353,0.00024,7]
[362948234,1748531432424,-698.20276281,0.00024101,2]
[362948236,1748531432434,-430.0,0.00024109,2]
[362948238,1748531432443,-192.475,0.00024109,2]
[362948240,1748531432453,-460.3702483,0.00024137,2]
[362948242,1748531432462,-364.176416,0.00024137,2]
[362948244,1748531432472,-364.176416,0.00024137,2]
[362948246,1748531432482,-364.176416,0.00024137,2]
[362948248,1748531432492,-364.176416,0.00024137,2]
[362948250,1748531432504,-364.176416,0.00024137,2]
[362948252,1748531432514,-364.176416,0.00024137,2]
[362948254,1748531432523,-364.176416,0.00024137,2]
[362948256,1748531432532,-364.176416,0.00024137,2]
[362948258,1748531432543,-4229.5336984,0.00024212,7]
[362948260,1748531432552,-5000.0,0.00024242,2]
[362948261,1748531432564,-5000.0,0.00024242,2]
[362948264,1748531432575,-5000.0,0.00024242,2]
[362948265,1748531432584,-3874.8362318,0.00024242,2]
[362948268,1748531432596,-679.863226,0.00024242,2]
[362948449,1748531439266,-69.79301905,0.00022512,2]
[362948454,1748531439309,-90.20698095,0.00022512,2]
[362948456,1748531439319,-500.0,0.00023989,2]
[362948458,1748531439328,-500.0,0.00023989,2]
[362948461,1748531439338,-260.57539246,0.00023989,2]
[362948463,1748531439347,-445.3005422,0.00024242,2]
[362948465,1748531439357,-306.0,0.00024274,2]
[362948467,1748531439366,-153.0,0.00024274,2]
[362948469,1748531439375,-153.0,0.00024274,2]
[362948470,1748531439384,-315.2654308,0.00024274,2]
[362948472,1748531439394,-153.0,0.00024274,2]
[362948473,1748531439403,-153.0,0.00024274,2]
[362948475,1748531439412,-571.30801433,0.00024279,2]
[362948477,1748531439422,-741.93,0.00024289,10]
[362948479,1748531439431,-500.0,0.00024298,2]
[362948481,1748531439440,-1104.16646826,0.00024298,2]
[362948483,1748531439450,-500.0,0.00024298,2]
[362948485,1748531439459,-500.0,0.00024298,2]
[362948487,1748531439469,-1104.16646826,0.00024298,2]
[362948489,1748531439478,-221.5537802,0.00024298,2]
[362948491,1748531439488,-1104.16646826,0.00024298,2]
[362948493,1748531439497,-1098.02650002,0.00024298,2]
[362948495,1748531439512,-6.13996824,0.00024298,2]
[362948497,1748531439522,-500.0,0.00024298,2]
[362948499,1748531439531,-354.26485931,0.00024298,2]
[362948502,1748531439544,-134.94785697,0.00024298,2]
[362948504,1748531439555,-500.0,0.00024298,2]
[362948505,1748531439566,-1104.16646826,0.00024298,2]
[362948507,1748531439575,-1104.16646826,0.00024298,2]
[362948509,1748531439586,-500.0,0.00024298,2]
[362948511,1748531439595,-500.0,0.00024298,2]
[362948513,1748531439605,-1104.16646826,0.00024298,2]
[362948516,1748531439618,-500.0,0.00024298,2]
[362948519,1748531439628,-1104.16646826,0.00024298,2]
[362948521,1748531439638,-1104.16646826,0.00024298,2]
[362948523,1748531439647,-1104.16646826,0.00024298,2]
[362948525,1748531439657,-377.46159955,0.00024298,2]
[362948527,1748531439667,-1104.16646826,0.00024298,2]
[362948529,1748531439677,-168638.87861,0.00024299,2]
[362948531,1748531439686,-500.0,0.00024299,2]
[362948533,1748531439696,-1617.79,0.000243,7]
[362948535,1748531439706,-6868.72,0.000243,2]
[362948537,1748531439716,-430.0,0.00024383,2]
[362948539,1748531439725,-571.30801433,0.0002444,2]
[362948541,1748531439735,-415.494705,0.000245,3]
[362948543,1748531439745,-153.0,0.00024548,2]
[362948545,1748531439754,-153.0,0.00024548,2]
[362948547,1748531439764,-153.0,0.00024548,2]
[362948549,1748531439774,-153.0,0.00024548,2]
[362948551,1748531439783,-321.9469918,0.00024548,2]
[362948553,1748531439793,-708.51,0.00024613,15]
[362948555,1748531439803,-215.0,0.00024656,2]
[362948557,1748531439812,-430.0,0.00024657,2]
[362948560,1748531439822,-384.95,0.00024657,3]
[362948562,1748531439831,-206.84255254,0.00024658,2]
[362948564,1748531439841,-200.0,0.00024658,15]
[362948566,1748531439851,-494.59088157,0.00024658,2]
[362948568,1748531439860,-207.79,0.00024699,2]
[362948570,1748531439870,-56423.62,0.000247,7]
[362948571,1748531439880,-1078.85410523,0.00024781,3]
[362948572,1748531439889,-571.30801436,0.00024783,2]
[362948573,1748531439899,-160.0,0.0002479,3]
[362948574,1748531439909,-160.0,0.0002479,3]
[362948575,1748531439919,-14654.43711757,0.000248,5]
[362948576,1748531439929,-528.06,0.000248,2]
[362948577,1748531439939,-1035.51914807,0.000248,2]
[362948591,1748531440107,-167.40859968,0.00024809,2]
[362948593,1748531440120,-1068.42624269,0.00024817,2]
[362948595,1748531440130,-384.09246953,0.00024873,2]
[362948597,1748531440139,-22364.78020604,0.00024881,2]
[362948599,1748531440149,-150.0,0.00024883,2]
[362948601,1748531440158,-150.0,0.00024883,2]
[362948603,1748531440168,-150.0,0.00024883,2]
[362948605,1748531440177,-411.542,0.00024883,2]
[362948607,1748531440187,-708.0,0.00024883,2]
[362948609,1748531440197,-2228.0,0.00024883,2]
[362948611,1748531440206,-405.0,0.00024883,2]
[362948613,1748531440216,-469.58,0.000249,7]
[362948615,1748531440226,-52076.22,0.000249,2]
[362948617,1748531440236,-199.36839248,0.000249,2]
[362948619,1748531440245,-152.49,0.000249,31]
[362948621,1748531440255,-152.49,0.000249,31]
[362948623,1748531440264,-152.49,0.000249,31]
[362948625,1748531440275,-152.49,0.000249,31]
[362948627,1748531440284,-152.49,0.000249,31]
[362948629,1748531440294,-152.49,0.000249,31]
[362948631,1748531440304,-152.49,0.000249,31]
[362948633,1748531440313,-152.49,0.000249,31]
[362948635,1748531440326,-152.49,0.000249,31]
[362948637,1748531440335,-152.49,0.000249,31]
[362948639,1748531440345,-152.49,0.000249,31]
[362948641,1748531440355,-152.49,0.000249,31]
[362948643,1748531440365,-152.49,0.000249,31]
[362948645,1748531440374,-152.49,0.000249,31]
[362948647,1748531440383,-604756.677487,0.000249,2]
[362948649,1748531440393,-586.814024,0.000249,2]
[362948651,1748531440402,-586.81402394,0.00024909,2]
[362948653,1748531440412,-586.81402394,0.00024919,2]
[362948655,1748531440424,-586.81402394,0.00024928,2]
[362948657,1748531440435,-2200.0,0.0002493,2]
[362948659,1748531440444,-479.686978,0.00024931,2]
[362948661,1748531440453,-586.81402394,0.00024938,2]
[362948662,1748531440463,-586.81402394,0.00024947,2]
[362948664,1748531440472,-586.81402394,0.00024957,2]
[362948666,1748531440481,-586.81402394,0.00024966,2]
[362948668,1748531440491,-586.81402394,0.00024976,2]
[362948670,1748531440504,-586.81402394,0.00024985,2]
[362948672,1748531440516,-160.0,0.00024999,2]
[362948675,1748531440526,-600.0,0.00024999,120]
[362948676,1748531440536,-600.0,0.00024999,30]
[362948678,1748531440547,-600.0,0.00024999,30]
[362948681,1748531440556,-600.0,0.00024999,30]
[362948682,1748531440566,-600.0,0.00024999,30]
[362948684,1748531440577,-600.0,0.00024999,120]
[362948686,1748531440587,-600.0,0.00024999,120]
[362948688,1748531440596,-162441.17074365,0.00025,2]
[362948690,1748531440606,-10722.97341001,0.00025,3]
[362948692,1748531440615,-160.43817396,0.00025,2]
[362948694,1748531440625,-536529.10094124,0.00025,30]
[362948697,1748531440638,-2000000.0,0.00025,30]
[362948700,1748531440665,-710.66527,0.00024613,15]
[362948702,1748531440674,-4268.5240765,0.00025,30]
[362948749,1748531441386,-6725.96465242,0.00025,30]
[362948777,1748531441679,430.0,0.00019178,2]
[362948908,1748531443303,430.0,0.00019178,2]
[362948935,1748531443593,-32.58635843,0.00023749,2]
[362948937,1748531443604,-4967.41364157,0.00023749,2]
[362948939,1748531443614,-152.705602,0.000239,2]
[362948941,1748531443623,-300.0,0.00024799,2]
[362948943,1748531443632,-3149.23222737,0.00025,30]
[362948945,1748531443642,-1060.0,0.00025,2]
[362948947,1748531443651,-206.0,0.00025,2]
[362948949,1748531443661,-13219.67880344,0.00025,2]
[362948951,1748531443670,-10361.05143116,0.00025,30]
[362948953,1748531443680,-9607.22684486,0.00025,7]
[362948955,1748531443688,-2000.0,0.00025,2]
[362948957,1748531443698,-66395.987731,0.00025,30]
[362948959,1748531443710,-75283.53583505,0.00025,30]
[362948962,1748531443735,290.03566025,0.00019452,2]
[362949266,1748531448062,-97.3376207,0.00022512,2]
[362949267,1748531448093,-48.60633142,0.00022512,2]
[362949546,1748531457238,5000.0,0.00022287,2]
[362949547,1748531462243,430.0,0.00019178,2]
[362949548,1748531465725,160.0,0.00019177,2]
[362949549,1748531473851,5000.0,0.00022287,2]
[362949550,1748531481792,430.0,0.00019178,2]
[362949551,1748531482400,430.0,0.00019452,2]
[362949552,1748531482674,430.0,0.00019726,2]
[362949553,1748531490262,1583.6577466,0.00022287,2]
[362949557,1748531505730,190.354282,0.00013699,2]
[362949571,1748532427106,-4145.2055955,0.00017168,2]
[362949572,1748532428086,-854.7944045,0.00017168,2]
[362949573,1748532428107,-307.88452336,0.00017341,2]
[362949574,1748532446127,-1635.28208496,0.00017168,2]
[362949577,1748532511004,6557.0,0.00016,2]
[362949583,1748532541951,304.855384,0.00013699,2]
[362949584,1748532546239,-3364.71791504,0.00017168,2]
[362949585,1748532546261,-226.90604154,0.00017341,2]
[362949586,1748532546281,-350.03847752,0.00017717,2]
[362949587,1748532546303,-300.0,0.00017999,2]
[362949588,1748532546325,-609.07129601,0.00018,2]
[362949589,1748532546346,-4772.51578456,0.00018,2]
[362949590,1748532546368,-300.0,0.00018261,2]
[362949591,1748532546390,-300.0,0.00018262,2]
[362949592,1748532546411,-300.0,0.00018262,2]
[362949593,1748532546432,-300.0,0.00018262,2]
[362949594,1748532546452,-300.0,0.00018262,2]
[362949595,1748532546474,-1200.0,0.00018262,2]
[362949596,1748532546495,-24900.0,0.00018265,2]
[362949597,1748532546516,-286.45303907,0.00018396,2]
[362949598,1748532546539,-500.0,0.00018396,2]
[362949599,1748532546560,-500.0,0.00018396,2]
[362949600,1748532546583,-500.0,0.00018396,2]
[362949601,1748532546604,-500.0,0.00018396,2]
[362949602,1748532546625,-291.15261491,0.00018396,2]
[362949603,1748532546645,-500.0,0.00018396,2]
[362949604,1748532546667,-410.2792125,0.00018396,2]
[362949605,1748532546692,-500.0,0.00018396,2]
[362949606,1748532546715,-398.08994401,0.00018396,2]
[362949607,1748532546739,-500.0,0.00018396,2]
[362949608,1748532546763,-500.0,0.00018396,2]
[362949609,1748532546787,-402.40072327,0.00018396,2]
[362949610,1748532546808,-409.02410236,0.00018396,2]
[362949611,1748532546828,-5593.69440251,0.00018397,2]
[362949612,1748532546852,-233.294471,0.000184,2]
[362949613,1748532546875,-1166.79492504,0.00018603,2]
[362949614,1748532546897,-583.39746252,0.00018868,2]
[362949615,1748532546929,-205.32775547,0.000189,2]
[362949616,1748532546952,-712.28416179,0.000189,2]
[362949617,1748532546978,-291.69873126,0.00019134,2]
[362949618,1748532547000,-430.0,0.00019178,2]
[362949619,1748532547020,-430.0,0.00019178,2]
[362949620,1748532547041,-430.0,0.00019178,2]
[362949621,1748532547063,-361.0699374,0.00019178,2]
[362949622,1748532547084,-450.0,0.00019178,2]
[362949623,1748532547105,-430.0,0.00019178,2]
[362949624,1748532547127,-430.0,0.00019178,2]
[362949625,1748532547148,-430.0,0.00019178,2]
[362949626,1748532547169,-430.0,0.00019178,2]
[362949627,1748532547194,-430.0,0.00019178,2]
[362949628,1748532547405,-430.0,0.00019178,2]
[362949629,1748532547428,-430.0,0.00019178,2]
[362949630,1748532547452,-430.0,0.00019178,2]
[362949631,1748532547476,-484.74,0.00019178,2]
[362949632,1748532547504,-430.0,0.00019178,2]
[362949633,1748532547530,-500.0,0.00019178,2]
[362949634,1748532547556,-430.0,0.00019178,2]
[362949635,1748532547579,-430.0,0.00019178,2]
[362949636,1748532547601,-516.0,0.00019178,2]
[362949637,1748532547623,-430.0,0.00019178,2]
[362949638,1748532547645,-430.0,0.00019178,2]
[362949639,1748532547667,-430.0,0.00019178,2]
[362949640,1748532547689,-430.0,0.00019178,2]
[362949641,1748532547711,-424.64294461,0.00019178,2]
[362949642,1748532547734,-430.0,0.00019178,2]
[362949643,1748532547759,-430.0,0.00019178,2]
[362949644,1748532547783,-430.0,0.00019178,2]
[362949645,1748532547806,-430.0,0.00019178,2]
[362949646,1748532547832,-430.0,0.00019178,2]
[362949647,1748532547857,-430.0,0.00019178,2]
[362949648,1748532547880,-430.0,0.00019178,2]
[362949649,1748532547909,-430.0,0.00019178,2]
[362949650,1748532547936,-526.61614794,0.00019178,2]
[362949651,1748532547963,-430.0,0.00019178,2]
[362949652,1748532547987,-430.0,0.00019178,2]
[362949653,1748532548012,-430.0,0.00019178,2]
[362949654,1748532548037,-430.0,0.00019178,2]
[362949655,1748532548059,-608.25722583,0.00019178,2]
[362949656,1748532548083,-264.715847,0.00019178,2]
[362949657,1748532548105,-179.703876,0.00019178,2]
[362949658,1748532548126,-516.0,0.00019205,2]
[362949659,1748532548148,-516.0,0.00019233,2]
[362949660,1748532548170,-516.0,0.0001926,2]
[362949661,1748532548192,-516.0,0.00019288,2]
[362949662,1748532548214,-516.0,0.00019315,2]
[362949663,1748532548249,-205.32775536,0.00019329,2]
[362949664,1748532548276,-500.68641638,0.0001933,2]
[362949665,1748532548299,-516.0,0.00019342,2]
[362949666,1748532548321,-516.0,0.0001937,2]
[362949667,1748532548344,-516.0,0.00019397,2]
[362949668,1748532548367,-516.0,0.00019425,2]
[362949669,1748532548389,-516.0,0.00019452,2]
[362949670,1748532548412,-430.0,0.00019452,2]
[362949671,1748532548434,-430.0,0.00019452,2]
[362949672,1748532548455,-430.0,0.00019452,2]